bitfinex-derivatives/quotes_BTCF0:USTF0_20250728
["timestamp","ask_amount","ask_price","bid_price","bid_amount"]
[1753693360858,0.89111021,119190.0,119180.0,1.9943166]
[1753693361050,0.89111021,119190.0,119180.0,0.8332366]
[1753693361558,0.89111021,119190.0,119180.0,1.08418431]
[1753693361754,0.89111021,119190.0,119180.0,0.8332365]
[1753693362056,0.89111021,119190.0,119180.0,0.66544]
[1753693362255,1.14205802,119190.0,119180.0,0.66544]
[1753693363658,0.6364765,119180.0,119170.0,1.43058]
[1753693363859,1.38931993,119180.0,119170.0,1.82676]
[1753693364046,1.46490564,119180.0,119170.0,1.82676]
[1753693364248,1.46490564,119180.0,119170.0,1.16108]
[1753693364447,1.46490564,119180.0,119170.0,1.82676]
[1753693364654,1.38931993,119180.0,119170.0,1.82676]
[1753693364956,1.49513993,119180.0,119170.0,1.82676]
[1753693365358,1.38931993,119180.0,119170.0,1.82676]
[1753693365753,1.53217313,119180.0,119170.0,1.82676]
[1753693366150,1.53214532,119180.0,119170.0,1.82676]
[1753693366357,1.45763771,119180.0,119170.0,1.82676]
[1753693367455,1.53312499,119180.0,119170.0,1.82676]
[1753693367762,0.0419571,119160.0,119140.0,0.22699126]
[1753693367957,1.13841442,119150.0,119140.0,0.6162929]
[1753693368157,1.13841442,119150.0,119140.0,1.11464]
[1753693369057,1.19880549,119150.0,119140.0,1.11464]
[1753693369963,0.94785768,119150.0,119140.0,1.11464]
[1753693370161,0.94885768,119150.0,119140.0,1.07306]
[1753693370463,1.19980549,119150.0,119140.0,1.07306]
[1753693371565,1.20080549,119150.0,119140.0,1.07306]
[1753693372164,1.14041442,119150.0,119140.0,1.07306]
[1753693372768,1.03414117,119150.0,119140.0,1.07306]
[1753693372966,0.98251469,119150.0,119140.0,1.07306]
[1753693374569,0.98251469,119150.0,119140.0,0.97597]
[1753693375067,0.98251469,119150.0,119140.0,1.07306]
[1753693376085,1.04290576,119150.0,119140.0,1.07306]
[1753693377183,0.98251469,119150.0,119140.0,1.07306]
[1753693378076,0.98251469,119150.0,119140.0,1.02283]
[1753693378281,1.04290576,119150.0,119140.0,0.97597]
[1753693379583,1.04290576,119150.0,119140.0,1.0262]
[1753693379984,1.04290576,119150.0,119140.0,1.1940529]
[1753693383887,1.04290576,119150.0,119140.0,1.06778]
[1753693384190,1.03414117,119150.0,119140.0,1.06778]
[1753693386084,1.04255509,119150.0,119140.0,1.06778]
[1753693390276,1.04255509,119150.0,119140.0,1.04761259]
[1753693390277,1.03414117,119150.0,119140.0,1.04761259]
[1753693390481,0.9737501,119150.0,119140.0,1.04761259]
[1753693391390,1.03414117,119150.0,119140.0,1.04761259]
[1753693392183,0.9737501,119150.0,119140.0,1.04761259]
[1753693392390,1.04923738,119150.0,119140.0,1.04761259]
[1753693392989,1.05777607,119150.0,119140.0,1.04761259]
[1753693393887,1.04923738,119150.0,119140.0,1.04761259]
[1753693394790,1.21683298,119150.0,119140.0,1.04761259]
[1753693395589,1.1413457,119150.0,119140.0,1.04761259]
[1753693396392,1.1413457,119150.0,119140.0,1.21546549]
[1753693396787,1.14993257,119150.0,119140.0,1.21546549]
[1753693397892,0.6331769,119130.0,119120.0,0.70888]
[1753693398098,1.24179016,119130.0,119120.0,1.1051]
[1753693398300,1.31736808,119130.0,119120.0,1.08492983]
[1753693398494,1.21158172,119130.0,119120.0,1.08492983]
[1753693398900,1.21158172,119130.0,119120.0,0.41920983]
[1753693399102,1.21158172,119130.0,119120.0,1.08492983]
[1753693399496,1.21258172,119130.0,119120.0,1.08492983]
[1753693399795,1.21358172,119130.0,119120.0,1.08492983]
[1753693400004,1.21358172,119130.0,119120.0,1.04334983]
[1753693401496,1.21358172,119130.0,119120.0,0.37762983]
[1753693401702,1.23021464,119130.0,119120.0,1.04338983]
[1753693402198,1.21504549,119130.0,119120.0,1.04338983]
[1753693402600,1.21504549,119130.0,119120.0,1.08496983]
[1753693402795,1.21504549,119130.0,119120.0,1.25285093]
[1753693404103,1.21504549,119130.0,119120.0,1.08496983]
[1753693405104,1.21504549,119130.0,119120.0,1.25285083]
[1753693406102,1.21504549,119130.0,119120.0,1.08496983]
[1753693406404,1.15463672,119130.0,119120.0,1.08496983]
[1753693406601,1.15463672,119130.0,119120.0,1.25285083]
[1753693407205,1.15463672,119130.0,119120.0,1.08496983]
[1753693407610,1.15463672,119130.0,119120.0,1.25285083]
[1753693408903,1.21501343,119130.0,119120.0,1.25285083]
[1753693409899,1.21501343,119130.0,119120.0,0.58709083]
[1753693410102,1.21501343,119130.0,119120.0,1.25289083]
[1753693410407,1.21501343,119130.0,119120.0,1.08500983]
[1753693411107,1.21501343,119130.0,119120.0,1.25289083]
[1753693416412,1.19838051,119130.0,119120.0,1.25289083]
[1753693416609,1.21500617,119130.0,119120.0,1.25289083]
[1753693417413,1.21500617,119130.0,119120.0,1.08500983]
[1753693417610,1.21500617,119130.0,119120.0,1.04342983]
[1753693417917,1.21504617,119130.0,119120.0,1.04342983]
[1753693418618,1.15466946,119130.0,119120.0,1.04342983]
[1753693419615,1.21506284,119130.0,119120.0,1.04342983]
[1753693421220,1.21506284,119130.0,119120.0,1.21131083]
[1753693421517,1.21506284,119130.0,119120.0,1.04342983]
[1753693422217,1.15466946,119130.0,119120.0,1.04342983]
[1753693423812,1.1380438,119130.0,119120.0,1.04342983]
[1753693424013,1.15467954,119130.0,119120.0,1.04342983]
[1753693425019,1.23025746,119130.0,119120.0,1.04342983]
[1753693425218,1.15467954,119130.0,119120.0,1.04342983]
[1753693426316,1.21512131,119130.0,119120.0,1.04342983]
[1753693427723,0.3578711,119120.0,119110.0,0.15483]
[1753693427922,0.3578851,119110.0,119100.0,0.64849]
[1753693428131,1.21472156,119110.0,119100.0,1.31433]
[1753693430017,1.21572156,119110.0,119100.0,1.31433]
[1753693430916,1.04837903,119110.0,119100.0,1.04483]
[1753693432326,1.0634606,119110.0,119100.0,1.04483]
[1753693433322,1.0635006,119110.0,119100.0,1.04483]
[1753693436626,1.09370904,119110.0,119100.0,1.04483]
[1753693436818,1.16065192,119110.0,119100.0,1.04483]
[1753693439330,1.16065192,119110.0,119100.0,0.93135136]
[1753693439623,1.05486556,119110.0,119100.0,0.93135136]
[1753693440021,1.21435623,119110.0,119100.0,0.66584]
[1753693440225,1.13882509,119110.0,119100.0,0.66584]
[1753693440424,1.24456869,119110.0,119100.0,0.66584]
[1753693441625,1.13882509,119110.0,119100.0,0.66584]
[1753693441826,1.13882509,119110.0,119100.0,0.78535]
[1753693442227,1.21434063,119110.0,119100.0,0.78535]
[1753693443829,1.19920529,119110.0,119100.0,0.78535]
[1753693446330,1.19920529,119110.0,119100.0,0.66584]
[1753693447219,1.19920529,119110.0,119100.0,0.78535]
[1753693448725,1.13882509,119110.0,119100.0,0.78535]
[1753693449434,1.19920529,119110.0,119100.0,0.78535]
[1753693449729,1.13882509,119110.0,119100.0,0.78535]
[1753693450930,1.55834769,119110.0,119100.0,0.78535]
[1753693453932,1.61872789,119110.0,119100.0,0.78535]
[1753693454538,1.61872789,119110.0,119100.0,0.66584]
[1753693454932,0.6427992,119100.0,119090.0,0.92395]
[1753693455132,1.39780617,119100.0,119090.0,0.92395]
[1753693456534,1.39780617,119100.0,119090.0,0.92595]
[1753693456733,1.47332171,119100.0,119090.0,0.90601343]
[1753693457640,1.47332171,119100.0,119090.0,0.90401343]
[1753693459245,1.458176,119100.0,119090.0,0.90401343]
[1753693459442,1.459176,119100.0,119090.0,0.90401343]
[1753693460940,1.460176,119100.0,119090.0,0.90401343]
[1753693461345,1.39980617,119100.0,119090.0,0.90401343]
[1753693461842,1.39984617,119100.0,119090.0,0.90401343]
[1753693462038,0.6448392,119100.0,119090.0,0.90401343]
[1753693462234,1.46022122,119100.0,119090.0,0.90401343]
[1753693464947,1.39984617,119100.0,119090.0,0.94559343]
[1753693465645,1.47536171,119100.0,119090.0,0.94559343]
[1753693467945,1.39984617,119100.0,119090.0,0.92541614]
[1753693468151,1.39984617,119100.0,119090.0,0.92549614]
[1753693468540,1.50556793,119100.0,119090.0,0.92549614]
[1753693469147,1.50556793,119100.0,119090.0,0.88391614]
[1753693469953,1.47542836,119100.0,119090.0,0.88391614]
[1753693475549,1.39984617,119100.0,119090.0,0.88391614]
[1753693475960,1.47542836,119100.0,119090.0,0.88391614]
[1753693482458,1.39984617,119100.0,119090.0,0.77041884]
[1753693484059,1.39984617,119100.0,119090.0,0.75024155]
[1753693484559,0.6448392,119100.0,119090.0,0.75024155]
[1753693484763,1.14817718,119100.0,119090.0,0.75024155]
[1753693484955,1.39984617,119100.0,119090.0,0.75024155]
[1753693485861,1.55102742,119100.0,119090.0,0.75024155]
[1753693487158,0.79602045,119100.0,119090.0,0.75024155]
[1753693487463,1.55102742,119100.0,119090.0,0.75024155]
[1753693489966,1.39984617,119100.0,119090.0,0.75024155]
[1753693492368,1.47550434,119100.0,119090.0,0.75024155]
[1753693493766,0.72049737,119100.0,119090.0,0.95974485]
[1753693493971,1.22383535,119100.0,119090.0,0.95974485]
[1753693494174,1.05592615,119100.0,119090.0,1.21141384]
[1753693494468,0.06256352,119100.0,119090.0,1.21685384]
[1753693494766,0.06256352,119100.0,119090.0,1.46852283]
[1753693494966,0.14264105,119110.0,119100.0,0.2386992]
[1753693495166,0.20313946,119110.0,119100.0,0.74203718]
[1753693495371,0.12748129,119110.0,119100.0,1.15995718]
[1753693495573,0.06698288,119110.0,119100.0,1.15995718]
[1753693496072,0.23487798,119110.0,119100.0,1.15995718]
[1753693496269,0.48654697,119110.0,119100.0,1.15995718]
[1753693496670,0.48854697,119110.0,119100.0,1.15995718]
[1753693496870,0.23687798,119110.0,119100.0,0.99193731]
[1753693497172,0.23887798,119110.0,119100.0,0.74193731]
[1753693499581,0.23887798,119110.0,119100.0,0.4066192]
[1753693501271,0.28722798,119110.0,119100.0,0.4066192]
[1753693504683,0.28722798,119110.0,119100.0,0.2386992]
[1753693505074,0.28722798,119110.0,119100.0,0.24726]
[1753693505582,0.07098288,119110.0,119100.0,0.24726]
[1753693505788,0.07098288,119110.0,119100.0,0.75049811]
[1753693506789,0.23887798,119110.0,119100.0,0.75049811]
[1753693507383,0.23687798,119110.0,119100.0,0.75049811]
[1753693507793,0.23687798,119110.0,119100.0,0.58257811]
[1753693508091,0.23487798,119110.0,119100.0,0.58357811]
[1753693509587,0.28322798,119110.0,119100.0,0.58357811]
[1753693510684,0.28322798,119110.0,119100.0,0.85307811]
[1753693513292,0.23487798,119110.0,119100.0,2.01491811]
[1753693513988,0.28158798,119110.0,119100.0,2.01491811]
[1753693520902,0.53307499,119110.0,119100.0,2.18257402]
[1753693522204,0.5935734,119110.0,119100.0,2.18257402]
[1753693523505,0.8396534,119110.0,119100.0,2.18257402]
[1753693523703,0.94475499,119110.0,119100.0,2.18257402]
[1753693525405,0.94475499,119110.0,119100.0,1.6796]
[1753693525703,0.94475499,119110.0,119100.0,2.18257402]
[1753693528805,0.97693499,119110.0,119100.0,2.18257402]
[1753693529308,0.72544798,119110.0,119100.0,2.18257402]
[1753693530808,0.97693499,119110.0,119100.0,2.18257402]
[1753693532212,0.72544798,119110.0,119100.0,2.18257402]
[1753693532609,0.72544798,119110.0,119100.0,1.93108701]
[1753693534709,0.72544798,119110.0,119100.0,2.18257402]
[1753693537213,0.97693499,119110.0,119100.0,2.18257402]
[1753693537513,0.55755288,119110.0,119100.0,2.18257402]
[1753693538614,0.16347288,119110.0,119100.0,2.18257402]
[1753693539010,1e-08,119110.0,119100.0,3.27306103]
[1753693539210,0.55106913,119130.0,119120.0,0.1988111]
[1753693539408,0.55106913,119130.0,119120.0,1.68190512]
[1753693539811,0.71893613,119130.0,119120.0,1.68190512]
[1753693540815,0.71893613,119130.0,119120.0,1.51411153]
[1753693541116,0.04875,119130.0,119120.0,1.51411153]
[1753693541417,0.2186169,119130.0,119120.0,1.51411153]
[1753693542213,0.28731384,119130.0,119120.0,1.51411153]
[1753693542419,0.62893297,119130.0,119120.0,1.51411153]
[1753693543215,0.62693297,119130.0,119120.0,1.51411153]
[1753693544919,0.73763297,119130.0,119120.0,1.51411153]
[1753693545107,0.71018384,119130.0,119120.0,1.51411153]
[1753693545308,0.77064297,119130.0,119120.0,1.51411153]
[1753693547815,0.77064297,119130.0,119120.0,0.84303153]
[1753693548015,0.77064297,119130.0,119120.0,1.1391511]
[1753693548016,1.1058234,119130.0,119120.0,1.1391511]
[1753693548210,1.1058234,119130.0,119120.0,0.94026]
[1753693548417,1.1058234,119130.0,119120.0,1.108141]
[1753693548715,1.1058234,119130.0,119120.0,0.2695]
[1753693548716,1.04536427,119130.0,119120.0,0.2695]
[1753693548921,1.12102244,119130.0,119120.0,0.92017054]
[1753693549222,1.45620287,119130.0,119120.0,0.49584]
[1753693549416,0.6416851,119110.0,119100.0,1.16184]
[1753693549623,1.03729046,119110.0,119100.0,1.83264]
[1753693550210,1.03729046,119110.0,119100.0,1.83268]
[1753693550620,1.03729046,119110.0,119100.0,2.0005892]
[1753693550920,1.03729046,119110.0,119100.0,2.0025892]
[1753693551622,1.03729046,119110.0,119100.0,2.0035892]
[1753693552224,1.03729046,119110.0,119100.0,2.0025892]
[1753693552516,1.03929046,119110.0,119100.0,2.0025892]
[1753693552721,1.04129046,119110.0,119100.0,2.0005892]
[1753693553021,1.04129046,119110.0,119100.0,0.8385892]
[1753693553614,0.70611003,119110.0,119100.0,1.54526963]
[1753693553820,0.70611003,119110.0,119100.0,1.2100892]
[1753693554925,0.70611003,119110.0,119100.0,1.1705492]
[1753693555120,1.04129046,119110.0,119100.0,1.1705492]
[1753693555321,0.98086553,119110.0,119100.0,1.1705492]
[1753693561330,0.98086553,119110.0,119100.0,1.2100892]
[1753693562235,0.98086553,119110.0,119100.0,1.1705492]
[1753693563038,0.98086553,119110.0,119100.0,1.2100892]
[1753693564037,0.6456851,119110.0,119100.0,1.2100892]
[1753693565436,0.004,119110.0,119100.0,1.54526963]
[1753693566842,0.004,119110.0,119100.0,1.79460017]
[1753693569329,0.002,119110.0,119100.0,1.79460017]
[1753693569534,0.7676002,119120.0,119110.0,0.3524752]
[1753693569840,0.7256269,119120.0,119110.0,0.5393952]
[1753693572541,0.7256269,119120.0,119110.0,0.87457563]
[1753693572740,0.7276269,119120.0,119110.0,0.87457563]
[1753693572940,0.7296269,119120.0,119110.0,0.5393952]
[1753693575148,1.06480733,119120.0,119110.0,0.5393952]
[1753693575545,0.7296269,119120.0,119110.0,0.5393952]
[1753693576446,0.80528507,119120.0,119110.0,0.5393952]
[1753693577550,0.7296269,119120.0,119110.0,0.5393952]
[1753693579051,0.80528507,119120.0,119110.0,0.5393952]
[1753693581553,0.7296269,119120.0,119110.0,0.5393952]
[1753693582144,1.06480733,119120.0,119110.0,0.5393952]
[1753693582349,1.12524289,119120.0,119110.0,0.5393952]
[1753693582557,0.79006246,119120.0,119110.0,0.5393952]
[1753693583759,0.79006246,119120.0,119110.0,0.4998552]
[1753693584056,0.79006246,119120.0,119110.0,0.47968467]
[1753693587362,1.12524289,119120.0,119110.0,0.47968467]
[1753693588165,1.06480733,119120.0,119110.0,0.47968467]
[1753693592361,1.06484733,119120.0,119110.0,0.47968467]
[1753693593863,1.12528289,119120.0,119110.0,0.47968467]
[1753693595468,1.06484733,119120.0,119110.0,0.47968467]
[1753693595670,1.12534486,119120.0,119110.0,0.47968467]
[1753693597269,0.79016443,119120.0,119110.0,0.51922467]
[1753693598069,0.79016443,119120.0,119110.0,0.8544051]
[1753693602278,0.7296669,119120.0,119110.0,0.8544051]
[1753693603572,0.80521136,119120.0,119110.0,0.8544051]
[1753693604179,0.7296669,119120.0,119110.0,0.8544051]
[1753693605179,0.80521136,119120.0,119110.0,0.8544051]
[1753693607284,0.80521136,119120.0,119110.0,0.51922467]
[1753693607783,0.80521136,119120.0,119110.0,0.47968467]
[1753693608783,0.80521136,119120.0,119110.0,0.8148651]
[1753693609183,0.7296669,119120.0,119110.0,0.8148651]
[1753693609483,0.7296669,119120.0,119110.0,0.47968467]
[1753693611784,0.7296669,119120.0,119110.0,0.8148651]
[1753693613182,0.80529706,119120.0,119110.0,0.8148651]
[1753693613984,0.80529706,119120.0,119110.0,0.47968467]
[1753693615588,0.7296669,119120.0,119110.0,0.47968467]
[1753693616988,1.05676817,119120.0,119110.0,0.73115573]
[1753693617286,0.98113796,119120.0,119110.0,0.73115573]
[1753693617487,0.98113796,119120.0,119110.0,0.77069573]
[1753693617786,1.05676818,119120.0,119110.0,0.77069573]
[1753693617986,1.05676814,119120.0,119110.0,0.77069573]
[1753693619783,1.05676814,119120.0,119110.0,0.73115573]
[1753693621185,0.7296669,119120.0,119110.0,0.73115573]
[1753693621589,1.05676962,119120.0,119110.0,0.73115573]
[1753693621886,0.98113796,119120.0,119110.0,0.73115573]
[1753693622290,1.0870594,119120.0,119110.0,0.73115573]
[1753693622695,0.98113796,119120.0,119110.0,0.73115573]
[1753693627395,1.04164597,119120.0,119110.0,0.73115573]
[1753693634297,0.98113796,119120.0,119110.0,0.73115573]
[1753693634496,1.04164893,119120.0,119110.0,0.73115573]
[1753693638197,1.04164893,119120.0,119110.0,0.7109852]
[1753693638896,0.98113796,119120.0,119110.0,0.7109852]
[1753693639904,0.44701106,119120.0,119110.0,0.7109852]
[1753693640099,0.1678837,119150.0,119140.0,0.1678528]
[1753693640297,0.3524037,119150.0,119140.0,1.81963492]
[1753693641799,0.3524037,119150.0,119140.0,1.8280026]
[1753693642004,0.6300937,119150.0,119140.0,1.8280026]
[1753693642200,0.6320937,119150.0,119140.0,1.8280026]
[1753693642408,0.6320937,119150.0,119140.0,1.8310026]
[1753693642814,0.6320937,119150.0,119140.0,1.66314161]
[1753693643016,0.69927834,119150.0,119140.0,1.66014161]
[1753693646813,0.69927834,119150.0,119140.0,0.99066161]
[1753693647014,0.69927834,119150.0,119140.0,1.66006161]
[1753693648710,0.69927834,119150.0,119140.0,0.08085]
[1753693648916,0.6300628,119140.0,119130.0,1.10819043]
[1753693649111,0.6300628,119140.0,119130.0,1.77779043]
[1753693650712,0.6300628,119140.0,119130.0,0.2586089]
[1753693651117,0.6300628,119140.0,119130.0,0.9281289]
[1753693651417,0.6300628,119140.0,119130.0,1.0977489]
[1753693651715,0.6300628,119140.0,119130.0,1.1725389]
[1753693651918,0.6310628,119140.0,119130.0,1.1725389]
[1753693652310,0.6320628,119140.0,119130.0,1.1725389]
[1753693652518,0.6320628,119140.0,119130.0,1.3586589]
[1753693654120,0.6330628,119140.0,119130.0,1.69374003]
[1753693665625,0.6330628,119140.0,119130.0,1.3586589]
[1753693666024,0.6330628,119140.0,119130.0,1.69374003]
[1753693668422,0.70834248,119140.0,119130.0,1.69374003]
[1753693668725,0.70834248,119140.0,119130.0,1.3586589]
[1753693669025,0.70834248,119140.0,119130.0,1.69374003]
[1753693672620,0.69344256,119140.0,119130.0,1.69374003]
[1753693672816,0.69344256,119140.0,119130.0,1.61005896]
[1753693672817,0.94484262,119140.0,119130.0,1.61005896]
[1753693675224,0.69344256,119140.0,119130.0,1.61005896]
[1753693676522,0.94484262,119140.0,119130.0,1.61005896]
[1753693678629,0.69344256,119140.0,119130.0,1.61005896]
[1753693679631,0.64482256,119140.0,119130.0,1.61005896]
[1753693679819,0.41575256,119140.0,119130.0,1.61005896]
[1753693680024,0.41575256,119140.0,119130.0,1.86145902]
[1753693680224,0.3553728,119140.0,119130.0,1.86145902]
[1753693680433,0.24613248,119140.0,119130.0,1.84129155]
[1753693681730,0.29506248,119140.0,119130.0,1.84129155]
[1753693682035,0.45712248,119140.0,119130.0,1.84129155]
[1753693684838,0.52529248,119140.0,119130.0,1.84129155]
[1753693685038,0.67190248,119140.0,119130.0,1.84129155]
[1753693685439,0.67190248,119140.0,119130.0,1.58989149]
[1753693687740,0.67190248,119140.0,119130.0,1.84129155]
[1753693688344,0.29506248,119140.0,119130.0,1.84129155]
[1753693688940,0.29506248,119140.0,119130.0,1.58989149]
[1753693689144,0.45712248,119140.0,119130.0,1.84129155]
[1753693689445,0.45712248,119140.0,119130.0,1.81949542]
[1753693689645,0.45712248,119140.0,119130.0,1.86146142]
[1753693692444,0.86339254,119140.0,119130.0,0.2098213]
[1753693692649,0.654667,119130.0,119120.0,0.32529]
[1753693692849,0.98134674,119130.0,119120.0,1.14807]
[1753693693049,0.98134674,119130.0,119120.0,1.39947006]
[1753693693250,0.98134674,119130.0,119120.0,1.56735116]
[1753693693439,0.98134674,119130.0,119120.0,1.56751116]
[1753693693642,0.98134674,119130.0,119120.0,1.39963006]
[1753693694046,0.98334674,119130.0,119120.0,1.39963006]
[1753693694748,1.06723757,119130.0,119120.0,0.47923]
[1753693694945,1.06723757,119130.0,119120.0,1.14823]
[1753693696049,0.99195789,119130.0,119120.0,1.14823]
[1753693697452,0.99195789,119130.0,119120.0,1.1280593]
[1753693698157,1.07551055,119130.0,119120.0,1.1280593]
[1753693702558,1.00023087,119130.0,119120.0,1.1280593]
[1753693702757,1.07565544,119130.0,119120.0,1.1280593]
[1753693705560,1.07565544,119130.0,119120.0,0.4590593]
[1753693705748,0.6546811,119120.0,119110.0,0.32529]
[1753693706057,1.43068635,119120.0,119110.0,0.74809]
[1753693706252,1.43068635,119120.0,119110.0,0.61444032]
[1753693706449,1.32526288,119120.0,119110.0,0.61444032]
[1753693706652,1.9326289,119120.0,119110.0,0.53120482]
[1753693707046,1.82711231,119120.0,119110.0,0.53120482]
[1753693707250,1.68255954,119120.0,119110.0,0.53120482]
[1753693708160,1.68259954,119120.0,119110.0,0.53120482]
[1753693708760,1.68359954,119120.0,119110.0,0.53120482]
[1753693712063,1.68459954,119120.0,119110.0,0.53120482]
[1753693712257,1.51671844,119120.0,119100.0,0.17485]
[1753693712460,0.77260159,119110.0,119100.0,0.99739]
[1753693712657,1.05015047,119110.0,119100.0,1.06822]
[1753693713054,0.98998599,119110.0,119100.0,1.06822]
[1753693715965,1.05113291,119110.0,119100.0,1.06822]
[1753693716868,0.1688951,119110.0,119100.0,1.61427009]
[1753693717371,0.001,119110.0,119100.0,1.61427009]
[1753693718267,1.3588952,119110.0,119100.0,1.61427009]
[1753693723564,1.3588952,119110.0,119100.0,1.88377009]
[1753693725075,0.1688952,119110.0,119100.0,1.88377009]
[1753693726473,0.2147852,119110.0,119100.0,1.88377009]
[1753693728768,0.97341609,119110.0,119100.0,1.41068]
[1753693728970,1.03356301,119110.0,119100.0,0.2695]
[1753693729163,1.03356301,119110.0,119100.0,0.91852674]
[1753693729369,0.97341609,119110.0,119100.0,0.91852674]
[1753693729568,1.04862169,119110.0,119100.0,0.6692]
[1753693729868,1.1088195,119110.0,119100.0,0.6692]
[1753693730068,0.97341609,119110.0,119100.0,0.6692]
[1753693731476,0.6371393,119100.0,119090.0,0.41696]
[1753693731675,1.03263242,119100.0,119090.0,1.08628]
[1753693732666,0.97243019,119100.0,119090.0,1.08628]
[1753693732868,0.97243019,119100.0,119090.0,1.2552033]
[1753693733874,0.97243019,119100.0,119090.0,1.08728]
[1753693739379,0.97243019,119100.0,119090.0,1.2552033]
[1753693739581,1.03263242,119100.0,119090.0,1.2552033]
[1753693739783,1.0409389,119100.0,119090.0,1.2552033]
[1753693741586,1.0409389,119100.0,119090.0,1.2980533]
[1753693743186,1.0409389,119100.0,119090.0,1.2980534]
[1753693743382,1.0409389,119100.0,119090.0,1.13013]
[1753693743582,1.0409389,119100.0,119090.0,1.08728]
[1753693743792,1.0409389,119100.0,119090.0,0.41796]
[1753693743993,1.0409389,119100.0,119090.0,1.08704]
[1753693745383,1.0409389,119100.0,119090.0,0.78147]
[1753693745989,1.0409389,119100.0,119090.0,1.05673]
[1753693752795,1.05594227,119100.0,119090.0,1.05673]
[1753693755404,0.98073667,119100.0,119090.0,1.09958]
[1753693755705,1.0861839,119100.0,119090.0,1.09958]
[1753693758500,1.0861839,119100.0,119090.0,0.001]
[1753693758698,0.4066433,119090.0,119080.0,0.39988]
[1753693758904,0.98309419,119090.0,119080.0,1.0688]
[1753693759403,1.08854142,119090.0,119080.0,1.0688]
[1753693759594,1.08854142,119090.0,119080.0,1.06876]
[1753693759793,1.08854142,119090.0,119080.0,1.07076]
[1753693760294,1.08854142,119090.0,119080.0,1.07176]
[1753693760498,1.15652762,119090.0,119080.0,1.10395]
[1753693761404,1.15656762,119090.0,119080.0,1.10395]
[1753693762806,1.12646586,119090.0,119080.0,1.10395]
[1753693763703,1.05112039,119090.0,119080.0,1.10395]
[1753693765005,1.12646586,119090.0,119080.0,1.10395]
[1753693767009,0.79117497,119090.0,119080.0,1.10395]
[1753693767209,1.12646586,119090.0,119080.0,1.10395]
[1753693769005,1.11138166,119090.0,119080.0,1.10395]
[1753693772510,1.05112039,119090.0,119080.0,1.10395]
[1753693774107,1.12646586,119090.0,119080.0,1.08377145]
[1753693777211,1.12646586,119090.0,119080.0,1.12662145]
[1753693782119,1.12646586,119090.0,119080.0,1.10644294]
[1753693782826,1.05112039,119090.0,119080.0,0.99293884]
[1753693784122,1.15669547,119090.0,119080.0,0.99293884]
[1753693784520,1.05112039,119090.0,119080.0,0.99293884]
[1753693787024,1.05112039,119090.0,119080.0,0.95008884]
[1753693787624,1.05112039,119090.0,119080.0,0.67168]
[1753693788118,1.47038491,119090.0,119080.0,0.67172]
[1753693788319,1.62098987,119090.0,119080.0,0.67172]
[1753693788719,1.28569898,119090.0,119080.0,0.67172]
[1753693790121,1.28569898,119090.0,119080.0,0.65154061]
[1753693792326,1.13509402,119090.0,119080.0,0.65154061]
[1753693792730,1.24069182,119090.0,119080.0,0.65154061]
[1753693798334,1.24069182,119090.0,119080.0,0.63136065]
[1753693798934,1.24069182,119090.0,119080.0,0.79826065]
[1753693800035,1.13509402,119090.0,119080.0,0.79826065]
[1753693800537,1.24069182,119090.0,119080.0,0.79826065]
[1753693800737,1.40888307,119090.0,119080.0,0.79826065]
[1753693801138,1.40888307,119090.0,119080.0,1.05210065]
[1753693802038,1.30328527,119090.0,119080.0,1.05210065]
[1753693802840,1.40888307,119090.0,119080.0,1.05210065]
[1753693809644,1.40888307,119090.0,119080.0,1.0319206]
[1753693810545,1.30328527,119090.0,119080.0,1.0319206]
[1753693811546,1.30328527,119090.0,119080.0,1.0893]
[1753693811847,1.30328527,119090.0,119080.0,1.13215]
[1753693812648,1.30328527,119090.0,119080.0,0.46359]
[1753693813137,1.14267527,119090.0,119080.0,1.13223]
[1753693813341,0.31992313,119090.0,119080.0,1.55190847]
[1753693813544,0.31992313,119090.0,119080.0,1.80364954]
[1753693813545,0.48769057,119090.0,119080.0,1.80364954]
[1753693813745,0.48769057,119090.0,119080.0,1.55190847]
[1753693814449,0.56311969,119090.0,119080.0,1.55190847]
[1753693814648,0.61012969,119090.0,119080.0,1.55190847]
[1753693815642,0.61012969,119090.0,119080.0,1.3001674]
[1753693815843,0.61012969,119090.0,119080.0,1.55190847]
[1753693816041,0.61012969,119090.0,119080.0,1.13223]
[1753693816245,1.04071969,119090.0,119080.0,1.3001675]
[1753693816946,1.12450526,119090.0,119080.0,1.3001675]
[1753693817548,0.55392862,119090.0,119080.0,1.13223]
[1753693817743,0.2359495,119090.0,119080.0,1.27998984]
[1753693817949,0.29628284,119090.0,119080.0,1.27998984]
[1753693818448,0.34329284,119090.0,119080.0,1.27998984]
[1753693818647,0.2829595,119090.0,119080.0,1.27998984]
[1753693819246,0.61848614,119090.0,119080.0,1.27998984]
[1753693819747,0.2829595,119090.0,119080.0,1.27998984]
[1753693819941,0.34327497,119090.0,119080.0,1.27998984]
[1753693820243,0.67880161,119090.0,119080.0,1.27998984]
[1753693821547,0.87434161,119090.0,119080.0,1.27998984]
[1753693823248,0.92082161,119090.0,119080.0,1.27998984]
[1753693823449,1.10939161,119090.0,119080.0,1.27998984]
[1753693824254,0.77386497,119090.0,119080.0,1.61551648]
[1753693824453,0.70074497,119090.0,119080.0,1.61551648]
[1753693824845,0.70074497,119090.0,119080.0,1.27998984]
[1753693825452,1.03627161,119090.0,119080.0,1.27998984]
[1753693825847,0.87182161,119090.0,119080.0,1.27998984]
[1753693826049,0.67880161,119090.0,119080.0,1.27998984]
[1753693827054,0.34327497,119090.0,119080.0,1.27998984]
[1753693827552,0.37436497,119090.0,119080.0,1.27998984]
[1753693827753,0.53881497,119090.0,119080.0,1.27998984]
[1753693828850,0.87434161,119090.0,119080.0,1.27998984]
[1753693829953,1.10939161,119090.0,119080.0,1.27998984]
[1753693832756,1.15467394,119090.0,119080.0,1.27998984]
[1753693838460,1.12451639,119090.0,119080.0,1.27998984]
[1753693838961,1.0406272,119090.0,119080.0,1.53162729]
[1753693841464,1.0406272,119090.0,119080.0,1.27998984]
[1753693841763,1.0406272,119090.0,119080.0,1.53162729]
[1753693842766,1.10101809,119090.0,119080.0,1.53162729]
[1753693842967,1.02557784,119090.0,119080.0,1.53906729]
[1753693846163,1.02557784,119090.0,119080.0,1.28742984]
[1753693846367,1.02557784,119090.0,119080.0,1.53906729]
[1753693848471,1.02557784,119090.0,119080.0,1.28742984]
[1753693848669,1.02557784,119090.0,119080.0,1.53906729]
[1753693849163,1.02557784,119090.0,119080.0,1.28742984]
[1753693850061,1.0406272,119090.0,119080.0,1.53906729]
[1753693850570,1.0406272,119090.0,119080.0,1.28742984]
[1753693851080,1.0406272,119090.0,119080.0,1.26725291]
[1753693853471,1.0406272,119090.0,119080.0,1.51889036]
[1753693857770,1.0406272,119090.0,119080.0,1.26725291]
[1753693857972,1.0406272,119090.0,119080.0,1.51889036]
[1753693858273,1.0406272,119090.0,119080.0,0.84281036]
[1753693858470,1.0406272,119090.0,119080.0,1.51769036]